[Event "Early-Titled-Tuesday-Blitz-November-28-2023"]
[Site "Chess.com"]
[Date "2023.11.28"]
[Round "7"]
[White "RamonManon0g"]
[Black "noblerone"]
[Result "1-0"]
[WhiteElo "2354"]
[BlackElo "2507"]
[TimeControl "180+1"]
[EndTime "9:25:55 PST"]
[Termination "RamonManon0g won by checkmate"]

1. e4 {[%clk 0:03:00.9]} 1... d5 {[%clk 0:02:57.6]} 2. exd5 {[%clk 0:03:00.4]}
2... Qxd5 {[%clk 0:02:58.5]} 3. Nc3 {[%clk 0:03:00]} 3... Qd8 {[%clk 0:02:56.5]}
4. d4 {[%clk 0:02:59.6]} 4... Nf6 {[%clk 0:02:56.6]} 5. Nf3 {[%clk 0:02:59.8]}
5... Bg4 {[%clk 0:02:56.4]} 6. Be2 {[%clk 0:03:00.1]} 6... e6 {[%clk 0:02:55.3]}
7. O-O {[%clk 0:03:00.1]} 7... c6 {[%clk 0:02:54.8]} 8. h3 {[%clk 0:03:00.1]}
8... Bxf3 {[%clk 0:02:54.5]} 9. Bxf3 {[%clk 0:02:59.7]} 9... Bd6 {[%clk
0:02:54.1]} 10. Bg5 {[%clk 0:02:58.8]} 10... Nbd7 {[%clk 0:02:54.6]} 11. Re1
{[%clk 0:02:55.4]} 11... O-O {[%clk 0:02:54.2]} 12. Ne4 {[%clk 0:02:53]} 12...
Be7 {[%clk 0:02:54.4]} 13. Bf4 {[%clk 0:02:39]} 13... Nb6 {[%clk 0:02:42.5]} 14.
c3 {[%clk 0:02:35.7]} 14... Nbd5 {[%clk 0:02:33.4]} 15. Bg3 {[%clk 0:02:35.2]}
15... b5 {[%clk 0:02:31.8]} 16. Qd3 {[%clk 0:02:32.2]} 16... a5 {[%clk
0:02:29.6]} 17. a4 {[%clk 0:02:16.7]} 17... Qb6 {[%clk 0:02:11.8]} 18. Nxf6+
{[%clk 0:02:01.2]} 18... Bxf6 {[%clk 0:02:04.7]} 19. Bd6 {[%clk 0:01:59]} 19...
Rfd8 {[%clk 0:02:00.7]} 20. Bc5 {[%clk 0:01:57.9]} 20... Qb7 {[%clk 0:01:57.5]}
21. b3 {[%clk 0:01:43.7]} 21... h6 {[%clk 0:01:54.3]} 22. axb5 {[%clk
0:01:39.4]} 22... Qxb5 {[%clk 0:01:14.1]} 23. Qxb5 {[%clk 0:01:25.1]} 23... cxb5
{[%clk 0:01:14]} 24. c4 {[%clk 0:01:25.5]} 24... bxc4 {[%clk 0:01:02.3]} 25.
bxc4 {[%clk 0:01:26.4]} 25... Nf4 {[%clk 0:00:30.5]} 26. Bxa8 {[%clk 0:01:23.1]}
26... Rxa8 {[%clk 0:00:31.4]} 27. Ra3 {[%clk 0:01:15.7]} 27... a4 {[%clk
0:00:26.7]} 28. Rea1 {[%clk 0:01:10.2]} 28... Ne2+ {[%clk 0:00:21.6]} 29. Kf1
{[%clk 0:01:05.9]} 29... Nxd4 {[%clk 0:00:18.5]} 30. Rxa4 {[%clk 0:00:59.7]}
30... Rxa4 {[%clk 0:00:15.1]} 31. Rxa4 {[%clk 0:01:00.6]} 31... Nb3 {[%clk
0:00:14.7]} 32. Be3 {[%clk 0:00:53.7]} 32... Kf8 {[%clk 0:00:14]} 33. c5 {[%clk
0:00:41.1]} 33... Ke7 {[%clk 0:00:13.7]} 34. Ra7+ {[%clk 0:00:39.2]} 34... Ke8
{[%clk 0:00:14.2]} 35. c6 {[%clk 0:00:37.9]} 35... Be5 {[%clk 0:00:14.6]} 36.
Rb7 {[%clk 0:00:32.8]} 36... Na5 {[%clk 0:00:14.1]} 37. Rb6 {[%clk 0:00:28.3]}
37... Bc7 {[%clk 0:00:12.7]} 38. Ra6 {[%clk 0:00:24.9]} 38... Ke7 {[%clk
0:00:12.5]} 39. Bc5+ {[%clk 0:00:22.1]} 39... Kf6 {[%clk 0:00:11.8]} 40. Bb6
{[%clk 0:00:20.8]} 40... Bxb6 {[%clk 0:00:11.7]} 41. Rxb6 {[%clk 0:00:21.7]}
41... Ke7 {[%clk 0:00:11.8]} 42. Rb7+ {[%clk 0:00:19.2]} 42... Kd6 {[%clk
0:00:12.4]} 43. Rxf7 {[%clk 0:00:18.7]} 43... Nxc6 {[%clk 0:00:12]} 44. Rxg7
{[%clk 0:00:18.7]} 44... Ne5 {[%clk 0:00:11.9]} 45. Rh7 {[%clk 0:00:19]} 45...
Kd5 {[%clk 0:00:11]} 46. Rxh6 {[%clk 0:00:19.2]} 46... Nc4 {[%clk 0:00:11.2]}
47. h4 {[%clk 0:00:18.9]} 47... Ke5 {[%clk 0:00:11.1]} 48. Rg6 {[%clk 0:00:19]}
48... Kf5 {[%clk 0:00:11.3]} 49. Rg3 {[%clk 0:00:17.8]} 49... Nd2+ {[%clk
0:00:11.2]} 50. Kg1 {[%clk 0:00:17.3]} 50... Ne4 {[%clk 0:00:12.1]} 51. Rf3+
{[%clk 0:00:16]} 51... Kg4 {[%clk 0:00:11.4]} 52. Re3 {[%clk 0:00:14.7]} 52...
Nc5 {[%clk 0:00:12.1]} 53. g3 {[%clk 0:00:14.9]} 53... Kf5 {[%clk 0:00:10.9]}
54. Kg2 {[%clk 0:00:15.1]} 54... e5 {[%clk 0:00:11.4]} 55. Ra3 {[%clk
0:00:13.6]} 55... Ne4 {[%clk 0:00:10.7]} 56. Ra5 {[%clk 0:00:12.7]} 56... Kf6
{[%clk 0:00:11.2]} 57. h5 {[%clk 0:00:12.5]} 57... Nc3 {[%clk 0:00:09.8]} 58. h6
{[%clk 0:00:11.6]} 58... Kg6 {[%clk 0:00:08.8]} 59. Rxe5 {[%clk 0:00:10.4]}
59... Kxh6 {[%clk 0:00:09.2]} 60. g4 {[%clk 0:00:10.1]} 60... Kg6 {[%clk
0:00:09.3]} 61. Kg3 {[%clk 0:00:10]} 61... Na2 {[%clk 0:00:08.2]} 62. f4 {[%clk
0:00:10.6]} 62... Nb4 {[%clk 0:00:08.7]} 63. f5+ {[%clk 0:00:11.2]} 63... Kg5
{[%clk 0:00:08.6]} 64. Re6 {[%clk 0:00:12.1]} 64... Nd5 {[%clk 0:00:06.7]} 65.
Rg6# {[%clk 0:00:12.6]} 1-0

[Event "Early-Titled-Tuesday-Blitz-November-28-2023"]
[Site "Chess.com"]
[Date "2023.11.28"]
[Round "7"]
[White "kuanysh1981"]
[Black "Korchmar_Vasiliy"]
[Result "0-1"]
[WhiteElo "2469"]
[BlackElo "2727"]
[TimeControl "180+1"]
[EndTime "9:25:58 PST"]
[Termination "Korchmar_Vasiliy won on time"]

1. d4 {[%clk 0:03:00.3]} 1... Nf6 {[%clk 0:02:59.9]} 2. Nf3 {[%clk 0:02:59.9]}
2... d5 {[%clk 0:03:00.1]} 3. c4 {[%clk 0:02:58.9]} 3... e6 {[%clk 0:03:00.6]}
4. Nc3 {[%clk 0:02:51]} 4... dxc4 {[%clk 0:03:00.6]} 5. e3 {[%clk 0:02:49.5]}
5... a6 {[%clk 0:03:00.1]} 6. Bxc4 {[%clk 0:02:49.2]} 6... b5 {[%clk 0:02:59.8]}
7. Bb3 {[%clk 0:02:48.8]} 7... Bb7 {[%clk 0:02:59.8]} 8. O-O {[%clk 0:02:48.8]}
8... Nbd7 {[%clk 0:03:00.4]} 9. Qe2 {[%clk 0:02:47]} 9... c5 {[%clk 0:03:00.8]}
10. Rd1 {[%clk 0:02:47.3]} 10... Qc7 {[%clk 0:02:54.5]} 11. d5 {[%clk
0:02:44.2]} 11... c4 {[%clk 0:02:54.7]} 12. dxe6 {[%clk 0:02:44.2]} 12... fxe6
{[%clk 0:02:55.1]} 13. Bc2 {[%clk 0:02:43.3]} 13... Bd6 {[%clk 0:02:55.5]} 14.
h3 {[%clk 0:02:27.2]} 14... O-O {[%clk 0:02:54.2]} 15. Ng5 {[%clk 0:02:27.2]}
15... Rae8 {[%clk 0:02:51.6]} 16. Nce4 {[%clk 0:02:25.8]} 16... Bh2+ {[%clk
0:02:35.8]} 17. Kh1 {[%clk 0:02:25.4]} 17... h6 {[%clk 0:02:36.7]} 18. Nxf6+
{[%clk 0:02:19.9]} 18... Nxf6 {[%clk 0:02:37.6]} 19. Nf3 {[%clk 0:02:18]} 19...
Bd6 {[%clk 0:02:30.9]} 20. Bd2 {[%clk 0:02:17.8]} 20... Ne4 {[%clk 0:02:16.6]}
21. Be1 {[%clk 0:02:13.5]} 21... Qc5 {[%clk 0:01:43.8]} 22. a3 {[%clk
0:02:07.5]} 22... Qh5 {[%clk 0:01:32.6]} 23. Kg1 {[%clk 0:01:37.3]} 23... Bb8
{[%clk 0:01:26.6]} 24. Nd4 {[%clk 0:01:05.1]} 24... Qg5 {[%clk 0:01:12.5]} 25.
Qg4 {[%clk 0:01:04.6]} 25... Qe5 {[%clk 0:01:06.8]} 26. f4 {[%clk 0:01:04.7]}
26... Qf6 {[%clk 0:00:57.9]} 27. Bb4 {[%clk 0:01:02.6]} 27... Rf7 {[%clk
0:00:54.2]} 28. Nf3 {[%clk 0:01:02.6]} 28... Ba7 {[%clk 0:00:45.1]} 29. Nd4
{[%clk 0:00:55.7]} 29... e5 {[%clk 0:00:36.4]} 30. Bxe4 {[%clk 0:00:45.5]} 30...
Bxe4 {[%clk 0:00:33.5]} 31. fxe5 {[%clk 0:00:46.4]} 31... Qxe5 {[%clk 0:00:22]}
32. Rf1 {[%clk 0:00:46.4]} 32... Bd5 {[%clk 0:00:11]} 33. Nf5 {[%clk 0:00:38.3]}
33... Kh7 {[%clk 0:00:05]} 34. Bc3 {[%clk 0:00:35.7]} 34... Qe4 {[%clk
0:00:05.6]} 35. Nxg7 {[%clk 0:00:29.9]} 35... Qxg4 {[%clk 0:00:05]} 36. hxg4
{[%clk 0:00:29]} 36... Rxg7 {[%clk 0:00:05.3]} 37. Bxg7 {[%clk 0:00:28.7]} 37...
Bxe3+ {[%clk 0:00:05.2]} 38. Kh2 {[%clk 0:00:27.7]} 38... Kxg7 {[%clk
0:00:06.1]} 39. Rad1 {[%clk 0:00:25.6]} 39... Bc6 {[%clk 0:00:03.9]} 40. Rd6
{[%clk 0:00:25.1]} 40... Ba8 {[%clk 0:00:03.7]} 41. Rxa6 {[%clk 0:00:24.5]}
41... Bd4 {[%clk 0:00:03.4]} 42. Rd1 {[%clk 0:00:18.4]} 42... Bxb2 {[%clk
0:00:03.4]} 43. Rd7+ {[%clk 0:00:18.4]} 43... Kg8 {[%clk 0:00:03.9]} 44. Rg6+
{[%clk 0:00:16.4]} 44... Kf8 {[%clk 0:00:03.7]} 45. Rxh6 {[%clk 0:00:15.5]}
45... Be5+ {[%clk 0:00:03.9]} 46. Kh3 {[%clk 0:00:15.3]} 46... c3 {[%clk
0:00:04.8]} 47. Rd1 {[%clk 0:00:04.7]} 47... c2 {[%clk 0:00:04.9]} 48. Rc1
{[%clk 0:00:05]} 48... Be4 {[%clk 0:00:05]} 49. g5 {[%clk 0:00:01.9]} 49... Bb2
{[%clk 0:00:04.1]} 50. Rf1+ {[%clk 0:00:02.3]} 50... Kg7 {[%clk 0:00:03.7]} 51.
Rd6 {[%clk 0:00:01.3]} 51... c1=Q {[%clk 0:00:03.9]} 52. Rxc1 {[%clk 0:00:01.5]}
52... Bxc1 {[%clk 0:00:04.8]} 53. Rb6 {[%clk 0:00:01.2]} 53... Bd3 {[%clk
0:00:04.8]} 0-1

[Event "Early-Titled-Tuesday-Blitz-November-28-2023"]
[Site "Chess.com"]
[Date "2023.11.28"]
[Round "7"]
[White "atalz0"]
[Black "Meri-Arabidze"]
[Result "0-1"]
[WhiteElo "2490"]
[BlackElo "2695"]
[TimeControl "180+1"]
[EndTime "9:25:58 PST"]
[Termination "Meri-Arabidze won on time"]

1. d4 {[%clk 0:03:00.9]} 1... f5 {[%clk 0:02:59.9]} 2. g3 {[%clk 0:03:00.8]}
2... Nf6 {[%clk 0:02:59.8]} 3. Bg2 {[%clk 0:03:01.1]} 3... e6 {[%clk 0:03:00.4]}
4. Nh3 {[%clk 0:03:01.2]} 4... c6 {[%clk 0:03:00]} 5. O-O {[%clk 0:03:01.3]}
5... Be7 {[%clk 0:02:59.4]} 6. Nd2 {[%clk 0:02:54.2]} 6... d5 {[%clk 0:02:58.9]}
7. c4 {[%clk 0:02:54.1]} 7... O-O {[%clk 0:02:59]} 8. Nf4 {[%clk 0:02:53.1]}
8... Bd6 {[%clk 0:02:55.8]} 9. Nf3 {[%clk 0:02:51.6]} 9... Qe7 {[%clk
0:02:55.5]} 10. Qc2 {[%clk 0:02:47.7]} 10... Nbd7 {[%clk 0:02:50.7]} 11. Nd3
{[%clk 0:02:46.5]} 11... Ne4 {[%clk 0:02:50.2]} 12. c5 {[%clk 0:02:29.6]} 12...
Bc7 {[%clk 0:02:49.4]} 13. Bf4 {[%clk 0:02:28.2]} 13... Bxf4 {[%clk 0:02:43.4]}
14. gxf4 {[%clk 0:02:29.1]} 14... Kh8 {[%clk 0:02:42.6]} 15. Nde5 {[%clk
0:02:26]} 15... g5 {[%clk 0:02:32.9]} 16. fxg5 {[%clk 0:02:17]} 16... Nxg5
{[%clk 0:02:22.5]} 17. Nxg5 {[%clk 0:02:15]} 17... Nxe5 {[%clk 0:02:01.2]} 18.
f4 {[%clk 0:02:01.2]} 18... Ng4 {[%clk 0:01:59.3]} 19. Rf3 {[%clk 0:02:00.4]}
19... h6 {[%clk 0:01:56.7]} 20. Rh3 {[%clk 0:01:58.9]} 20... Rg8 {[%clk
0:01:42.1]} 21. Qd3 {[%clk 0:01:38.6]} 21... Bd7 {[%clk 0:01:19.5]} 22. Rf1
{[%clk 0:00:57.4]} 22... Rg6 {[%clk 0:01:18.6]} 23. Kh1 {[%clk 0:00:49.5]} 23...
Rag8 {[%clk 0:01:16.4]} 24. Nf3 {[%clk 0:00:35.1]} 24... Qg7 {[%clk 0:01:15.4]}
25. Nh4 {[%clk 0:00:33.2]} 25... Rf6 {[%clk 0:01:11.4]} 26. Rg3 {[%clk
0:00:31.2]} 26... Qf7 {[%clk 0:00:54.7]} 27. Bf3 {[%clk 0:00:17.4]} 27... Qh5
{[%clk 0:00:51.7]} 28. Rh3 {[%clk 0:00:16.7]} 28... Rf7 {[%clk 0:00:44.8]} 29.
Bg2 {[%clk 0:00:14.3]} 29... Rfg7 {[%clk 0:00:42.4]} 30. Nf3 {[%clk 0:00:14]}
30... Qg6 {[%clk 0:00:36.5]} 31. Rg3 {[%clk 0:00:13.7]} 31... Be8 {[%clk
0:00:27.5]} 32. Ne5 {[%clk 0:00:11.5]} 32... Qh5 {[%clk 0:00:19.2]} 33. Nxg4
{[%clk 0:00:09.6]} 33... fxg4 {[%clk 0:00:16.5]} 34. e4 {[%clk 0:00:08.6]} 34...
dxe4 {[%clk 0:00:15.3]} 35. Bxe4 {[%clk 0:00:09.5]} 35... Bg6 {[%clk 0:00:15]}
36. Re1 {[%clk 0:00:08.2]} 36... Bxe4+ {[%clk 0:00:12.7]} 37. Qxe4 {[%clk
0:00:09.1]} 37... Qd5 {[%clk 0:00:12.4]} 38. Qxd5 {[%clk 0:00:07.9]} 38... exd5
{[%clk 0:00:13.3]} 39. Re5 {[%clk 0:00:08]} 39... Kh7 {[%clk 0:00:12.8]} 40. Kg2
{[%clk 0:00:07.7]} 40... Rf7 {[%clk 0:00:12.2]} 41. f5 {[%clk 0:00:07.7]} 41...
h5 {[%clk 0:00:12.7]} 42. Kf2 {[%clk 0:00:07.4]} 42... Kh6 {[%clk 0:00:12.7]}
43. Ke3 {[%clk 0:00:06.7]} 43... Rgf8 {[%clk 0:00:13]} 44. Rg1 {[%clk
0:00:05.6]} 44... Rxf5 {[%clk 0:00:12.8]} 45. Rxf5 {[%clk 0:00:05.5]} 45... Rxf5
{[%clk 0:00:13.7]} 46. Kd2 {[%clk 0:00:04.5]} 46... Kg5 {[%clk 0:00:14.1]} 47.
Re1 {[%clk 0:00:04.1]} 47... Rf2+ {[%clk 0:00:14]} 48. Kc3 {[%clk 0:00:04.5]}
48... Rxh2 {[%clk 0:00:14]} 49. Re7 {[%clk 0:00:04.1]} 49... g3 {[%clk
0:00:14.5]} 50. Rg7+ {[%clk 0:00:03.8]} 50... Kf4 {[%clk 0:00:14.6]} 51. Rxb7
{[%clk 0:00:02.1]} 51... g2 {[%clk 0:00:14.7]} 52. Rf7+ {[%clk 0:00:02.9]} 52...
Kg3 {[%clk 0:00:14.8]} 53. Rg7+ {[%clk 0:00:02.9]} 53... Kf2 {[%clk 0:00:15.1]}
54. Rf7+ {[%clk 0:00:02.4]} 54... Kg1 {[%clk 0:00:15.5]} 55. b4 {[%clk
0:00:02.1]} 55... Kh1 {[%clk 0:00:14.8]} 56. Rg7 {[%clk 0:00:01.8]} 56... g1=Q
{[%clk 0:00:15.1]} 57. Rxg1+ {[%clk 0:00:02.3]} 57... Kxg1 {[%clk 0:00:16]} 58.
b5 {[%clk 0:00:01.3]} 58... cxb5 {[%clk 0:00:15]} 59. Kb4 {[%clk 0:00:01.5]}
59... Rc2 {[%clk 0:00:14.7]} 0-1

[Event "Early-Titled-Tuesday-Blitz-November-28-2023"]
[Site "Chess.com"]
[Date "2023.11.28"]
[Round "7"]
[White "Dewarfd"]
[Black "twitchTriniCupid"]
[Result "1-0"]
[WhiteElo "2150"]
[BlackElo "2355"]
[TimeControl "180+1"]
[EndTime "9:25:59 PST"]
[Termination "Dewarfd won on time"]

1. d4 {[%clk 0:02:59.7]} 1... Nf6 {[%clk 0:02:57.9]} 2. e3 {[%clk 0:02:59.9]}
2... e6 {[%clk 0:02:58.4]} 3. Nf3 {[%clk 0:03:00.3]} 3... c5 {[%clk 0:02:58.9]}
4. dxc5 {[%clk 0:03:00.3]} 4... Bxc5 {[%clk 0:02:58.8]} 5. c4 {[%clk 0:03:00.5]}
5... O-O {[%clk 0:02:58.4]} 6. Nc3 {[%clk 0:03:00.7]} 6... b6 {[%clk 0:02:59]}
7. Be2 {[%clk 0:03:00.3]} 7... Bb7 {[%clk 0:02:59.4]} 8. O-O {[%clk 0:03:00.5]}
8... Nc6 {[%clk 0:02:58.7]} 9. a3 {[%clk 0:03:00.5]} 9... a5 {[%clk 0:02:49.7]}
10. b3 {[%clk 0:02:56.6]} 10... Qe7 {[%clk 0:02:32.8]} 11. Bb2 {[%clk
0:02:54.9]} 11... Rfd8 {[%clk 0:02:31.6]} 12. h3 {[%clk 0:02:32.5]} 12... d6
{[%clk 0:02:19]} 13. Qc2 {[%clk 0:02:28.7]} 13... Rac8 {[%clk 0:02:14.5]} 14.
Rfd1 {[%clk 0:02:26.3]} 14... h6 {[%clk 0:02:13.4]} 15. Na4 {[%clk 0:02:22.7]}
15... Rb8 {[%clk 0:01:45.9]} 16. Rd2 {[%clk 0:02:04.1]} 16... d5 {[%clk
0:01:21.3]} 17. Nxc5 {[%clk 0:01:53.6]} 17... Qxc5 {[%clk 0:01:14.4]} 18. Bxf6
{[%clk 0:01:52.2]} 18... gxf6 {[%clk 0:01:14.4]} 19. Qb2 {[%clk 0:01:41.4]}
19... Kg7 {[%clk 0:01:13.9]} 20. Rc1 {[%clk 0:01:33.8]} 20... dxc4 {[%clk
0:01:12.1]} 21. Rxd8 {[%clk 0:01:24.5]} 21... Rxd8 {[%clk 0:01:10.8]} 22. Bxc4
{[%clk 0:01:24.6]} 22... Qd6 {[%clk 0:00:56.9]} 23. Bb5 {[%clk 0:01:16.7]} 23...
Ne7 {[%clk 0:00:52.7]} 24. Be2 {[%clk 0:01:03.4]} 24... Rc8 {[%clk 0:00:50.5]}
25. Rd1 {[%clk 0:01:02.9]} 25... Qc7 {[%clk 0:00:47.4]} 26. Qd4 {[%clk
0:00:59.2]} 26... Qc5 {[%clk 0:00:42.1]} 27. Qxc5 {[%clk 0:00:57.5]} 27... Rxc5
{[%clk 0:00:37.8]} 28. Rd7 {[%clk 0:00:57.1]} 28... Bxf3 {[%clk 0:00:37.4]} 29.
Bxf3 {[%clk 0:00:55.6]} 29... Nf5 {[%clk 0:00:30.5]} 30. Bg4 {[%clk 0:00:52.5]}
30... Nh4 {[%clk 0:00:19.8]} 31. Bxe6 {[%clk 0:00:47.3]} 31... f5 {[%clk
0:00:16.2]} 32. Bxf7 {[%clk 0:00:40.7]} 32... Kf6 {[%clk 0:00:16.4]} 33. Bc4
{[%clk 0:00:40.1]} 33... b5 {[%clk 0:00:16]} 34. Rd5 {[%clk 0:00:24.8]} 34...
Rxd5 {[%clk 0:00:13.8]} 35. Bxd5 {[%clk 0:00:25]} 35... b4 {[%clk 0:00:14.1]}
36. axb4 {[%clk 0:00:24.4]} 36... axb4 {[%clk 0:00:15]} 37. Kf1 {[%clk 0:00:22]}
37... Ke5 {[%clk 0:00:14.9]} 38. Bf7 {[%clk 0:00:21.8]} 38... Kf6 {[%clk
0:00:14.4]} 39. Be8 {[%clk 0:00:21.8]} 39... Ke7 {[%clk 0:00:13.9]} 40. Bh5
{[%clk 0:00:20.8]} 40... Kf6 {[%clk 0:00:14.3]} 41. Ke2 {[%clk 0:00:20.7]} 41...
Kg5 {[%clk 0:00:13.8]} 42. Bf3 {[%clk 0:00:19.3]} 42... Kf6 {[%clk 0:00:13.5]}
43. Kd3 {[%clk 0:00:18.2]} 43... Ke5 {[%clk 0:00:13.9]} 44. Kc4 {[%clk 0:00:18]}
44... Ng6 {[%clk 0:00:13.3]} 45. Kxb4 {[%clk 0:00:17.6]} 45... f4 {[%clk
0:00:13.9]} 46. Kc5 {[%clk 0:00:16.3]} 46... fxe3 {[%clk 0:00:13.3]} 47. fxe3
{[%clk 0:00:17.2]} 47... Ne7 {[%clk 0:00:13.2]} 48. b4 {[%clk 0:00:17]} 48...
Nf5 {[%clk 0:00:12.3]} 49. e4 {[%clk 0:00:17]} 49... Nd4 {[%clk 0:00:10]} 50. b5
{[%clk 0:00:15.7]} 50... Ne6+ {[%clk 0:00:10.5]} 51. Kc6 {[%clk 0:00:15.6]}
51... Nd4+ {[%clk 0:00:10.2]} 52. Kb6 {[%clk 0:00:14.4]} 52... Kd6 {[%clk
0:00:10.4]} 53. h4 {[%clk 0:00:12.8]} 53... Ne6 {[%clk 0:00:07.6]} 54. Ka7
{[%clk 0:00:12.3]} 54... Kc5 {[%clk 0:00:06.8]} 55. b6 {[%clk 0:00:12.4]} 55...
Nd8 {[%clk 0:00:07.3]} 56. b7 {[%clk 0:00:11.9]} 1-0

[Event "Early-Titled-Tuesday-Blitz-November-28-2023"]
[Site "Chess.com"]
[Date "2023.11.28"]
[Round "7"]
[White "tantaan"]
[Black "MikeSailer"]
[Result "1-0"]
[WhiteElo "2349"]
[BlackElo "2058"]
[TimeControl "180+1"]
[EndTime "9:26:00 PST"]
[Termination "tantaan won on time"]

1. d4 {[%clk 0:03:00.9]} 1... d5 {[%clk 0:02:59.8]} 2. c4 {[%clk 0:03:01]} 2...
Bf5 {[%clk 0:02:59.3]} 3. Nc3 {[%clk 0:02:57.9]} 3... e6 {[%clk 0:02:59.5]} 4.
cxd5 {[%clk 0:02:53]} 4... exd5 {[%clk 0:02:59.5]} 5. Qb3 {[%clk 0:02:49.1]}
5... Nc6 {[%clk 0:02:58.5]} 6. Be3 {[%clk 0:01:29.4]} 6... Nb4 {[%clk
0:02:45.2]} 7. Rc1 {[%clk 0:01:28.4]} 7... a5 {[%clk 0:02:45.1]} 8. a3 {[%clk
0:01:26.5]} 8... a4 {[%clk 0:02:45.6]} 9. Nxa4 {[%clk 0:01:21.2]} 9... Nc6
{[%clk 0:01:50.9]} 10. Qxb7 {[%clk 0:01:17.8]} 10... Nxd4 {[%clk 0:01:18.7]} 11.
Bxd4 {[%clk 0:01:08.6]} 11... Rxa4 {[%clk 0:01:15.8]} 12. e3 {[%clk 0:01:04]}
12... Bd6 {[%clk 0:01:03.6]} 13. Bb5+ {[%clk 0:01:01.3]} 13... Bd7 {[%clk
0:01:03.7]} 14. Bxa4 {[%clk 0:00:55.6]} 14... Bxa4 {[%clk 0:01:03.5]} 15. Bxg7
{[%clk 0:00:45]} 15... Qg5 {[%clk 0:00:59.3]} 16. Qc8+ {[%clk 0:00:34.2]} 16...
Ke7 {[%clk 0:00:58.7]} 17. Rxc7+ {[%clk 0:00:18.2]} 17... Bxc7 {[%clk
0:00:58.6]} 18. Qxc7+ {[%clk 0:00:15.8]} 18... Bd7 {[%clk 0:00:58.5]} 19. Qc5+
{[%clk 0:00:13.9]} 19... Ke6 {[%clk 0:00:43.4]} 20. Bxh8 {[%clk 0:00:12.9]}
20... Qxg2 {[%clk 0:00:43.2]} 21. Qb6+ {[%clk 0:00:13.3]} 21... Ke7 {[%clk
0:00:26.3]} 22. Qb4+ {[%clk 0:00:13.1]} 22... Ke6 {[%clk 0:00:16.1]} 23. Qb6+
{[%clk 0:00:11.1]} 23... Ke7 {[%clk 0:00:15.2]} 24. Qc5+ {[%clk 0:00:11.3]}
24... Ke6 {[%clk 0:00:10.9]} 25. Qc7 {[%clk 0:00:11.5]} 25... f6 {[%clk
0:00:09.4]} 26. Qg3 {[%clk 0:00:09.4]} 26... Qxh1 {[%clk 0:00:09.5]} 27. Qxg8+
{[%clk 0:00:07.3]} 27... Kd6 {[%clk 0:00:09.2]} 28. Bxf6 {[%clk 0:00:07.6]}
28... Be6 {[%clk 0:00:08.2]} 29. Qg3+ {[%clk 0:00:07.6]} 29... Kc6 {[%clk
0:00:08.4]} 30. Bd4 {[%clk 0:00:07.4]} 30... Qe4 {[%clk 0:00:08.5]} 31. Ne2
{[%clk 0:00:06.5]} 31... Qb1+ {[%clk 0:00:08.3]} 32. Kd2 {[%clk 0:00:06.9]}
32... Bf5 {[%clk 0:00:06.2]} 33. Nc3 {[%clk 0:00:05]} 33... Qc2+ {[%clk
0:00:05.5]} 34. Ke1 {[%clk 0:00:05.6]} 34... Qxb2 {[%clk 0:00:01.7]} 35. Kf1
{[%clk 0:00:04.6]} 35... Qc1+ {[%clk 0:00:02.3]} 36. Kg2 {[%clk 0:00:04.2]}
36... Be4+ {[%clk 0:00:03]} 37. Nxe4 {[%clk 0:00:04.4]} 37... dxe4 {[%clk
0:00:03.9]} 38. Qe5 {[%clk 0:00:04.1]} 38... Qxa3 {[%clk 0:00:03.4]} 39. Qe6+
{[%clk 0:00:00.7]} 39... Qd6 {[%clk 0:00:03.6]} 40. Qxd6+ {[%clk 0:00:00.9]}
40... Kxd6 {[%clk 0:00:04]} 41. Kg3 {[%clk 0:00:01.8]} 41... Ke6 {[%clk
0:00:04.7]} 42. Kf4 {[%clk 0:00:02.7]} 42... Kf7 {[%clk 0:00:04.7]} 43. h4
{[%clk 0:00:02.8]} 43... Kg6 {[%clk 0:00:05.6]} 44. Kxe4 {[%clk 0:00:03.4]}
44... Kh5 {[%clk 0:00:06.5]} 45. Bf6 {[%clk 0:00:04.1]} 45... Kg4 {[%clk
0:00:07.1]} 46. Ke5 {[%clk 0:00:05]} 46... Kf3 {[%clk 0:00:07.5]} 47. e4 {[%clk
0:00:05.1]} 47... Kxf2 {[%clk 0:00:01.1]} 48. Kf5 {[%clk 0:00:06]} 1-0